bitfinex-derivatives/quotes_BTCF0:USTF0_20250912
["timestamp","ask_amount","ask_price","bid_price","bid_amount"]
[1757712359751,0.39556,116060.0,116050.0,1.32791]
[1757712360058,0.39556,116060.0,116050.0,1.51491836]
[1757712360358,0.39556,116060.0,116050.0,1.74875804]
[1757712360758,0.03476,116060.0,116050.0,1.74875804]
[1757712361954,0.0136,116060.0,116050.0,1.74875804]
[1757712362955,0.04169269,116060.0,116050.0,1.74875804]
[1757712365653,0.09601269,116060.0,116050.0,1.74875804]
[1757712365963,0.06792,116060.0,116050.0,1.74875804]
[1757712366354,0.09595362,116060.0,116050.0,1.74875804]
[1757712367758,0.05432,116060.0,116050.0,1.75175804]
[1757712368361,0.082359,116060.0,116050.0,1.75175804]
[1757712370966,0.118179,116060.0,116050.0,0.96235804]
[1757712371264,0.11817977,116060.0,116050.0,1.74831804]
[1757712372366,0.09014,116060.0,116050.0,1.74831804]
[1757712372870,0.09014,116060.0,116050.0,0.96235804]
[1757712373065,0.09014,116060.0,116050.0,1.74827804]
[1757712376368,0.09014,116060.0,116050.0,1.74819804]
[1757712380470,0.09014,116060.0,116050.0,1.60783536]
[1757712380668,0.11816559,116060.0,116050.0,1.60783536]
[1757712388769,0.11816559,116060.0,116050.0,1.74811804]
[1757712392274,0.47896559,116060.0,116050.0,1.74791804]
[1757712393087,0.47896559,116060.0,116050.0,1.60763536]
[1757712394278,0.47896559,116060.0,116050.0,0.82207536]
[1757712394483,0.47896559,116060.0,116050.0,1.60759536]
[1757712395083,0.47896559,116060.0,116050.0,1.60755536]
[1757712396090,0.47896559,116060.0,116050.0,0.82207536]
[1757712396297,0.47896559,116060.0,116050.0,1.60755536]
[1757712398494,0.47896559,116060.0,116050.0,1.74783804]
[1757712399395,0.47896559,116060.0,116050.0,1.32699]
[1757712399596,0.47896559,116060.0,116050.0,1.74783804]
[1757712401097,0.47896559,116060.0,116050.0,1.60755536]
[1757712404007,0.47896559,116060.0,116050.0,0.82207536]
[1757712404302,0.47896559,116060.0,116050.0,1.60739536]
[1757712405905,0.47896559,116060.0,116050.0,0.82207536]
[1757712406106,0.47896559,116060.0,116050.0,1.60739536]
[1757712411208,0.47896559,116060.0,116050.0,1.61539536]
[1757712412710,0.47896559,116060.0,116050.0,1.33483]
[1757712413008,0.47896559,116060.0,116050.0,1.61539536]
[1757712413709,0.47896559,116060.0,116050.0,0.83007536]
[1757712414012,0.47896559,116060.0,116050.0,1.61523536]
[1757712414711,0.47896559,116060.0,116050.0,1.33467]
[1757712415010,0.47896559,116060.0,116050.0,1.61519536]
[1757712415305,0.47896559,116060.0,116050.0,0.83007536]
[1757712415510,0.47896559,116060.0,116050.0,1.61519536]
[1757712417909,0.47896559,116060.0,116050.0,0.83007536]
[1757712418311,0.47896559,116060.0,116050.0,1.61515536]
[1757712419214,0.47896559,116060.0,116050.0,0.83007536]
[1757712419404,0.47896559,116060.0,116050.0,1.61511536]
[1757712419606,0.47896559,116060.0,116050.0,0.83007536]
[1757712419805,0.47896559,116060.0,116050.0,1.61511536]
[1757712420505,0.47896559,116060.0,116050.0,1.33455]
[1757712420914,0.47896559,116060.0,116050.0,1.61511536]
[1757712421415,0.47896559,116060.0,116050.0,0.83007536]
[1757712421602,0.47896559,116060.0,116050.0,1.61507536]
[1757712422409,0.47896559,116060.0,116050.0,1.52156406]
[1757712422613,0.47896559,116060.0,116050.0,0.73656406]
[1757712422915,0.47896559,116060.0,116050.0,1.52156406]
[1757712428117,0.47896559,116060.0,116050.0,1.33451]
[1757712428314,0.47896559,116060.0,116050.0,1.52156406]
[1757712431114,0.66601965,116060.0,116050.0,0.12951]
[1757712433416,1.45085965,116060.0,116050.0,0.12951]
[1757712433613,1.45085965,116060.0,116050.0,0.41951]
[1757712435119,1.26380559,116060.0,116050.0,0.60656406]
[1757712436521,1.45085965,116060.0,116050.0,0.60656406]
[1757712439121,1.26380559,116060.0,116050.0,0.60656406]
[1757712439619,1.45085965,116060.0,116050.0,0.41951]
[1757712444526,1.26380559,116060.0,116050.0,0.41951]
[1757712444826,1.45085965,116060.0,116050.0,0.60656406]
[1757712447626,1.45085965,116060.0,116050.0,0.41951]
[1757712452919,1.45085965,116060.0,116050.0,0.60656406]
[1757712453120,1.45085965,116060.0,116050.0,0.41951]
[1757712453318,1.45085965,116060.0,116050.0,0.60656406]
[1757712453726,0.66601965,116060.0,116050.0,0.60656406]
[1757712453928,1.45045965,116060.0,116050.0,0.41951]
[1757712454125,1.45045965,116060.0,116050.0,0.60656406]
[1757712455228,1.45045965,116060.0,116050.0,0.02951]
[1757712455923,1.63751371,116060.0,116050.0,0.02951]
[1757712456227,1.63751371,116060.0,116050.0,0.008]
[1757712458217,1.88751371,116060.0,116050.0,0.008]
[1757712458422,1.91837656,116060.0,116050.0,0.008]
[1757712458615,1.96468417,116060.0,116050.0,0.008]
[1757712459318,1.71468417,116060.0,116050.0,0.008]
[1757712460031,1.71705176,116060.0,116050.0,0.008]
[1757712460227,0.88630415,116060.0,116050.0,0.008]
[1757712460431,1.48361009,116060.0,116050.0,0.0294]
[1757712461330,1.48361009,116060.0,116050.0,0.008]
[1757712461631,1.67066415,116060.0,116050.0,0.008]
[1757712462222,1.92066415,116060.0,116050.0,0.008]
[1757712475128,1.8898013,116060.0,116050.0,0.008]
[1757712475925,1.92066415,116060.0,116050.0,0.008]
[1757712476242,1.13630415,116060.0,116050.0,0.008]
[1757712476437,1.92046415,116060.0,116050.0,0.008]
[1757712480340,1.92097724,116060.0,116050.0,0.008]
[1757712481439,0.76270912,116060.0,116050.0,0.02951]
[1757712481745,1.26592627,116060.0,116050.0,1.06656406]
[1757712482042,1.45298033,116060.0,116050.0,1.06656406]
[1757712482547,1.40622453,116060.0,116050.0,1.01980826]
[1757712483250,0.62214453,116060.0,116050.0,1.01980826]
[1757712483441,1.40622453,116060.0,116050.0,1.01980826]
[1757712483641,0.62214453,116060.0,116050.0,1.01980826]
[1757712483838,0.48184627,116060.0,116050.0,1.11010652]
[1757712484041,1.40622453,116060.0,116050.0,1.11010652]
[1757712484346,1.40622453,116060.0,116050.0,0.96980826]
[1757712489040,0.62214453,116060.0,116050.0,0.96980826]
[1757712489244,1.40610453,116060.0,116050.0,0.96980826]
[1757712491346,1.4262103,116060.0,116050.0,0.96980826]
[1757712493346,1.42630022,116060.0,116050.0,0.96980826]
[1757712494941,1.42615423,116060.0,116050.0,0.96980826]
[1757712496042,1.56645249,116060.0,116050.0,0.96980826]
[1757712496433,1.70675075,116060.0,116050.0,0.82951]
[1757712496652,1.70675075,116060.0,116050.0,0.808]
[1757712497740,1.70675075,116060.0,116050.0,0.82951]
[1757712504853,1.70675075,116060.0,116050.0,0.008]
[1757712505552,1.70647075,116060.0,116050.0,0.008]
[1757712508753,0.92279075,116060.0,116050.0,0.008]
[1757712508946,1.70643075,116060.0,116050.0,0.02951]
[1757712510955,1.70639075,116060.0,116050.0,0.02951]
[1757712511150,0.92279075,116060.0,116050.0,0.02951]
[1757712511346,1.70635075,116060.0,116050.0,0.02951]
[1757712513450,0.92279075,116060.0,116050.0,0.02951]
[1757712513652,1.70635075,116060.0,116050.0,0.02951]
[1757712514662,0.92279075,116060.0,116050.0,0.02951]
[1757712514855,1.70631075,116060.0,116050.0,0.02951]
[1757712515157,0.92279075,116060.0,116050.0,0.02951]
[1757712515357,1.70631075,116060.0,116050.0,0.02951]
[1757712516150,1.95631075,116060.0,116050.0,0.008]
[1757712516459,1.12029597,116060.0,116050.0,0.008]
[1757712516752,1.5720536,116060.0,116050.0,0.008]
[1757712517062,2.2936536,116060.0,116050.0,0.008]
[1757712519357,2.0436536,116060.0,116050.0,0.008]
[1757712522562,0.01296,116030.0,116020.0,0.02329]
[1757712522756,0.01296,116030.0,116010.0,0.3608]
[1757712522757,1.24130478,116030.0,116010.0,0.3608]
[1757712522960,0.03513,116020.0,116010.0,1.14438826]
[1757712523155,0.04597428,116020.0,116010.0,1.14438826]
[1757712523949,0.18627254,116020.0,116010.0,1.14438826]
[1757712524360,0.18627254,116020.0,116010.0,1.14938826]
[1757712525054,0.18727254,116020.0,116010.0,1.15838826]
[1757712525560,0.04697428,116020.0,116010.0,1.15838826]
[1757712525959,0.18727254,116020.0,116010.0,1.15838826]
[1757712527861,0.04697428,116020.0,116010.0,1.29868652]
[1757712528655,0.04697428,116020.0,116010.0,1.01809]
[1757712528863,0.04697428,116020.0,116010.0,1.29868652]
[1757712529657,0.00336759,116020.0,116010.0,1.71216658]
[1757712538565,0.00336759,116020.0,116010.0,1.2912718]
[1757712538867,0.00336759,116020.0,116010.0,1.71216658]
[1757712540667,0.00336759,116020.0,116010.0,1.2912718]
[1757712540867,0.00336759,116020.0,116010.0,1.72095472]
[1757712541268,0.00336759,116020.0,116010.0,1.71216658]
[1757712542467,0.00336759,116020.0,116010.0,1.6655084]
[1757712542969,0.00336759,116020.0,116010.0,1.2912718]
[1757712543167,0.00336759,116020.0,116010.0,1.4783901]
[1757712544763,0.00336759,116020.0,116010.0,1.2912718]
[1757712545068,0.00336759,116020.0,116010.0,1.9024301]
[1757712545274,0.00336759,116020.0,116010.0,2.2632301]
[1757712547165,0.00336759,116020.0,116010.0,1.4783901]
[1757712547372,0.00336759,116020.0,116010.0,2.2656301]
[1757712549263,0.00336759,116020.0,116010.0,2.0785118]
[1757712549571,0.00336759,116020.0,116010.0,2.2656301]
[1757712551173,0.00336759,116020.0,116010.0,2.0785118]
[1757712551375,0.00336759,116020.0,116010.0,2.2656301]
[1757712553375,0.00336759,116020.0,116010.0,2.0785118]
[1757712553562,0.00336759,116020.0,116010.0,2.2656301]
[1757712557881,0.00336759,116020.0,116010.0,2.2484483]
[1757712558083,0.00336759,116020.0,116010.0,2.26610952]
[1757712561382,0.00336759,116020.0,116010.0,2.2484483]
[1757712562085,0.00336759,116020.0,116010.0,1.4612083]
[1757712562272,0.00336759,116020.0,116010.0,2.2480083]
[1757712563086,0.00336759,116020.0,116010.0,2.4351266]
[1757712571490,0.00336759,116020.0,116010.0,1.6483266]
[1757712571787,0.00336759,116020.0,116010.0,2.4343266]
[1757712572290,0.00336759,116020.0,116010.0,2.2472083]
[1757712575094,0.00336759,116020.0,116010.0,2.4343266]
[1757712575792,0.00336759,116020.0,116010.0,2.06009]
[1757712575982,0.00336759,116020.0,116010.0,2.4343266]
[1757712577793,0.00336759,116020.0,116010.0,2.2472083]
[1757712578688,0.00336759,116020.0,116010.0,2.2704576]
[1757712582185,0.00336759,116020.0,116010.0,2.5204576]
[1757712585495,0.00336759,116020.0,116010.0,1.4844576]
[1757712585697,0.00336759,116020.0,116010.0,2.2706976]
[1757712602412,0.00336759,116020.0,116010.0,2.31738947]
[1757712603607,0.00336759,116020.0,116010.0,1.53114947]
[1757712603805,0.00340759,116020.0,116010.0,2.23053847]
[1757712604010,0.00340759,116020.0,116010.0,1.80961]
[1757712604309,0.00340759,116020.0,116010.0,2.23053847]
[1757712607710,0.07407759,116020.0,116010.0,2.23053847]
[1757712608415,0.07407759,116020.0,116010.0,1.44501847]
[1757712608711,0.07407759,116020.0,116010.0,2.23285847]
[1757712609809,0.07407759,116020.0,116010.0,1.44501847]
[1757712610011,0.07407759,116020.0,116010.0,1.02409]
[1757712610207,0.07407759,116020.0,116010.0,1.81169]
[1757712610408,0.07407759,116020.0,116010.0,2.23261847]
[1757712610912,0.08683759,116020.0,116010.0,1.01809]
[1757712611105,0.08683759,116020.0,116010.0,1.80621]
[1757712611412,0.08683759,116020.0,116010.0,2.22713847]
[1757712611614,0.07407759,116020.0,116010.0,2.22713847]
[1757712612416,0.07407759,116020.0,116010.0,1.80621]
[1757712612618,0.07407759,116020.0,116010.0,2.22713847]
[1757712616219,0.07407759,116020.0,116010.0,1.43901847]
[1757712616520,0.07407759,116020.0,116010.0,2.22777847]
[1757712617519,0.07407759,116020.0,116010.0,1.80685]
[1757712617722,0.08683759,116020.0,116010.0,1.01809]
[1757712617913,0.07407759,116020.0,116010.0,1.43901847]
[1757712618114,0.07407759,116020.0,116010.0,2.22781847]
[1757712618514,0.07407759,116020.0,116010.0,2.22857847]
[1757712619525,0.07407759,116020.0,116010.0,1.43901847]
[1757712620022,0.07407759,116020.0,116010.0,2.22865847]
[1757712622616,0.07407759,116020.0,116010.0,1.43901847]
[1757712622818,0.07407759,116020.0,116010.0,2.22833847]
[1757712629830,0.07407759,116020.0,116010.0,1.80741]
[1757712630031,0.07407759,116020.0,116010.0,2.22833847]
[1757712631332,0.07407759,116020.0,116010.0,1.43901847]
[1757712631533,0.07407759,116020.0,116010.0,2.22893847]
[1757712632534,0.07407759,116020.0,116010.0,1.80801]
[1757712632722,0.07407759,116020.0,116010.0,2.22885847]
[1757712637326,0.07407759,116020.0,116010.0,2.22877847]
[1757712637635,0.07407759,116020.0,116010.0,2.22881847]
[1757712638429,0.07407759,116020.0,116010.0,1.80789]
[1757712638635,0.07407759,116020.0,116010.0,2.22881847]
[1757712640238,0.07407759,116020.0,116010.0,1.80789]
[1757712640428,0.07407759,116020.0,116010.0,2.22881847]
[1757712648952,0.07407759,116020.0,116010.0,1.01809]
[1757712649254,0.07407759,116020.0,116010.0,2.23053847]
[1757712654754,0.07407759,116020.0,116010.0,1.80961]
[1757712654954,0.07407759,116020.0,116010.0,2.23053847]
[1757712656445,0.07407759,116020.0,116010.0,1.43901847]
[1757712656649,0.07407759,116020.0,116010.0,2.23025847]
[1757712657259,0.07407759,116020.0,116010.0,2.23021847]
[1757712657451,0.07407759,116020.0,116010.0,2.23017847]
[1757712657648,0.07407759,116020.0,116010.0,1.43901847]
[1757712657851,0.07407759,116020.0,116010.0,2.23013847]
[1757712658044,0.07407759,116020.0,116010.0,2.23009847]
[1757712658651,0.07407759,116020.0,116010.0,1.43901847]
[1757712658858,0.07407759,116020.0,116010.0,2.23009847]
[1757712659157,0.07407759,116020.0,116010.0,1.43901847]
[1757712659348,0.07407759,116020.0,116010.0,2.22989847]
[1757712659656,0.07407759,116020.0,116010.0,1.43901847]
[1757712660157,0.07407759,116020.0,116010.0,2.22985847]
[1757712660354,0.07407759,116020.0,116010.0,1.43901847]
[1757712660656,0.07407759,116020.0,116010.0,2.22981847]
[1757712661462,0.47821708,116020.0,116010.0,1.01809]
[1757712661663,0.47821708,116020.0,116010.0,1.15839949]
[1757712661853,0.47821708,116020.0,116010.0,2.08930898]
[1757712662158,0.33790759,116020.0,116010.0,2.08930898]
[1757712662359,0.33790759,116020.0,116010.0,1.99585581]
[1757712663461,0.34645742,116020.0,116010.0,1.99585581]
[1757712665961,0.34645742,116020.0,116010.0,1.20525581]
[1757712666164,0.34645742,116020.0,116010.0,1.99565581]
[1757712666962,0.34645742,116020.0,116010.0,1.63485581]
[1757712672059,0.34645742,116020.0,116010.0,1.44769]
[1757712672261,0.34645742,116020.0,116010.0,1.63485581]
[1757712675062,0.36850742,116020.0,116010.0,1.44661]
[1757712675259,0.36850742,116020.0,116010.0,1.63377581]
[1757712676269,0.36850742,116020.0,116010.0,1.44661]
[1757712676455,0.36850742,116020.0,116010.0,1.63377581]
[1757712677768,0.36850742,116020.0,116010.0,0.84445581]
[1757712678068,0.36850742,116020.0,116010.0,1.63389581]
[1757712680874,0.72930742,116020.0,116010.0,1.63389581]
[1757712681565,0.72930742,116020.0,116010.0,0.84445581]
[1757712681974,0.72930742,116020.0,116010.0,1.63337581]
[1757712683271,0.91647323,116020.0,116010.0,1.63337581]
[1757712684168,0.91647323,116020.0,116010.0,0.65729]
[1757712684375,0.91647323,116020.0,116010.0,1.63325581]
[1757712685174,0.72930742,116020.0,116010.0,1.63325581]
[1757712685374,0.91647323,116020.0,116010.0,1.63325581]
[1757712686683,0.72930742,116020.0,116010.0,1.63325581]
[1757712686877,0.91647323,116020.0,116010.0,1.63325581]
[1757712688477,0.72930742,116020.0,116010.0,1.63325581]
[1757712688680,0.91647323,116020.0,116010.0,1.63325581]
[1757712690181,0.91647323,116020.0,116010.0,0.84445581]
[1757712690382,0.91647323,116020.0,116010.0,1.63269581]
[1757712690882,0.91647323,116020.0,116010.0,1.63245581]
[1757712692978,0.66647323,116020.0,116010.0,0.84445581]
[1757712693183,0.66647323,116020.0,116010.0,1.44509]
[1757712693482,0.66647323,116020.0,116010.0,1.63225581]
[1757712694484,0.66647323,116020.0,116010.0,0.84445581]
[1757712694783,0.66647323,116020.0,116010.0,1.63221581]
[1757712696184,0.85363904,116020.0,116010.0,0.65729]
[1757712696378,1.13267813,116020.0,116010.0,0.29729]
[1757712697176,0.94551232,116020.0,116010.0,0.29729]
[1757712697376,1.13267813,116020.0,116010.0,0.29729]
[1757712698184,1.91995813,116020.0,116010.0,0.29729]
[1757712698386,1.91995813,116020.0,116010.0,0.274]
[1757712699384,1.66995813,116020.0,116010.0,0.274]
[1757712701987,1.66995813,116020.0,116010.0,0.29679]
[1757712706594,1.66995813,116020.0,116010.0,0.274]
[1757712708794,1.29562651,116020.0,116010.0,0.29577]
[1757712708988,1.66995813,116020.0,116010.0,0.274]
[1757712710686,1.29562651,116020.0,116010.0,0.29577]
[1757712710889,1.66995813,116020.0,116010.0,0.29577]
[1757712712298,1.29562651,116020.0,116010.0,0.29577]
[1757712712499,1.67114392,116020.0,116010.0,0.29577]
[1757712714497,1.2968123,116020.0,116010.0,0.29577]
[1757712714803,1.67114392,116020.0,116010.0,0.29577]
[1757712716198,1.2968123,116020.0,116010.0,0.29577]
[1757712716399,1.67114392,116020.0,116010.0,0.29577]
[1757712716894,0.5095323,116020.0,116010.0,0.83293581]
[1757712717300,0.5095323,116020.0,116010.0,1.61913581]
[1757712718594,0.14018247,116020.0,116010.0,1.97993581]
[1757712718798,0.11114338,116020.0,116010.0,1.97993581]
[1757712719103,0.11114338,116020.0,116010.0,1.79277]
[1757712719400,0.11114338,116020.0,116010.0,1.97993581]
[1757712722508,0.14892479,116020.0,116010.0,1.97993581]
[1757712724505,0.14892479,116020.0,116010.0,2.21387847]
[1757712725107,0.14015457,116020.0,116010.0,2.21387847]
[1757712725307,0.10427457,116020.0,116010.0,2.22131847]
[1757712726506,0.10427457,116020.0,116010.0,2.21387847]
[1757712726705,0.11750457,116020.0,116010.0,2.21387847]
[1757712726909,0.11750457,116020.0,116010.0,1.79277]
[1757712727118,0.11750457,116020.0,116010.0,2.21387847]
[1757712728607,0.12627703,116020.0,116010.0,2.21387847]
[1757712732308,0.12627703,116020.0,116010.0,1.79277]
[1757712732507,0.09726584,116020.0,116010.0,2.21387847]
[1757712733606,0.09726584,116020.0,116010.0,1.42767847]
[1757712733806,0.09726584,116020.0,116010.0,2.21547847]
[1757712734309,0.12623125,116020.0,116010.0,2.21547847]
[1757712735110,0.12623125,116020.0,116010.0,1.42767847]
[1757712735407,0.12623125,116020.0,116010.0,1.79421]
[1757712735708,0.12623125,116020.0,116010.0,2.21531847]
[1757712735908,0.12623125,116020.0,116010.0,1.42767847]
[1757712736501,0.12623125,116020.0,116010.0,1.85479847]
[1757712736697,0.12623125,116020.0,116010.0,1.06687847]
[1757712736898,0.12623125,116020.0,116010.0,1.85479847]
[1757712737911,0.12623125,116020.0,116010.0,1.06687847]
[1757712738210,0.12623125,116020.0,116010.0,1.43353]
[1757712738412,0.12623125,116020.0,116010.0,1.85463847]
[1757712740907,0.26660074,116020.0,116010.0,1.71426898]
[1757712741513,0.14897125,116020.0,116010.0,0.92650898]
[1757712741714,0.14897125,116020.0,116010.0,1.71398898]
[1757712741914,0.28934074,116020.0,116010.0,1.71398898]
[1757712745415,0.28934074,116020.0,116010.0,1.71378898]
[1757712746415,0.65014074,116020.0,116010.0,1.71378898]
[1757712747117,0.65014074,116020.0,116010.0,1.43305]
[1757712747322,0.50977125,116020.0,116010.0,1.71378898]
[1757712747615,0.65014074,116020.0,116010.0,1.71378898]
[1757712748210,0.50977125,116020.0,116010.0,1.71378898]
[1757712748418,0.65014074,116020.0,116010.0,1.71378898]
[1757712749219,0.50977125,116020.0,116010.0,1.71378898]
[1757712749420,0.65014074,116020.0,116010.0,1.71378898]
[1757712750115,0.50977125,116020.0,116010.0,1.43305]
[1757712750419,0.65014074,116020.0,116010.0,1.71378898]
[1757712751917,0.65014074,116020.0,116010.0,1.85415847]
[1757712751918,0.50099879,116020.0,116010.0,1.85415847]
[1757712752124,0.12696879,116020.0,116010.0,2.21495847]
[1757712753522,0.14073879,116020.0,116010.0,2.21495847]
[1757712753722,0.14941336,116020.0,116010.0,2.21495847]
[1757712754125,0.14941336,116020.0,116010.0,1.79385]
[1757712754321,0.14941336,116020.0,116010.0,2.21495847]
[1757712754624,0.12044795,116020.0,116010.0,2.21495847]
[1757712756325,0.12044795,116020.0,116010.0,1.79385]
[1757712756523,0.12044795,116020.0,116010.0,2.21495847]
[1757712758221,0.12044795,116020.0,116010.0,1.79385]
[1757712758526,0.12044795,116020.0,116010.0,2.21495847]
[1757712759725,0.12044795,116020.0,116010.0,1.79385]
[1757712759922,0.14930399,116020.0,116010.0,2.21495847]
[1757712760423,0.12044795,116020.0,116010.0,2.21495847]
[1757712761326,0.12044795,116020.0,116010.0,1.79385]
[1757712761528,0.12044795,116020.0,116010.0,2.21495847]
[1757712763528,0.14930449,116020.0,116010.0,2.21495847]
[1757712766045,0.14930449,116020.0,116010.0,1.42767847]
[1757712766229,0.14930449,116020.0,116010.0,2.21435847]
[1757712771235,0.14930449,116020.0,116010.0,1.79325]
[1757712771431,0.14930449,116020.0,116010.0,2.21435847]
[1757712774240,0.14930449,116020.0,116010.0,1.79325]
[1757712774430,0.14930449,116020.0,116010.0,2.21435847]
[1757712775835,0.39930449,116020.0,116010.0,0.624]
[1757712776029,1.18121296,116020.0,116010.0,0.624]
[1757712776529,1.04084347,116020.0,116010.0,0.76436949]
[1757712776732,1.04084347,116020.0,116010.0,0.624]
[1757712777035,1.04084347,116020.0,116010.0,0.78604949]
[1757712779330,1.04084347,116020.0,116010.0,0.64568]
[1757712779527,1.04084347,116020.0,116010.0,0.78604949]
[1757712781333,1.04084347,116020.0,116010.0,0.64568]
[1757712781537,1.04084347,116020.0,116010.0,0.78604949]
[1757712782136,1.04084347,116020.0,116010.0,0.64568]
[1757712782338,1.04084347,116020.0,116010.0,0.78604949]
[1757712783835,1.06114266,116020.0,116010.0,0.78604949]
[1757712786333,0.96761301,116020.0,116010.0,0.64568]
[1757712788934,0.96761301,116020.0,116010.0,0.30568]
[1757712793938,1.15482234,116020.0,116010.0,0.30568]
[1757712794142,0.96761301,116020.0,116010.0,0.30568]
[1757712799645,0.78040368,116020.0,116010.0,0.30568]
[1757712799849,0.96761301,116020.0,116010.0,0.30568]
[1757712803346,0.78040368,116020.0,116010.0,0.30568]
[1757712803550,0.96761301,116020.0,116010.0,0.30568]
[1757712804651,1.15482234,116020.0,116010.0,0.30568]
[1757712805751,0.78040368,116020.0,116010.0,0.30568]
[1757712805951,1.15482234,116020.0,116010.0,0.30568]
[1757712808551,1.15482234,116020.0,116010.0,0.014]
[1757712818362,1.08415234,116020.0,116010.0,0.014]
[1757712818659,0.70973368,116020.0,116010.0,0.014]
[1757712818860,1.08415234,116020.0,116010.0,0.014]
[1757712819354,0.83415234,116020.0,116010.0,0.014]
[1757712821752,1.62003234,116020.0,116010.0,0.014]
[1757712826665,0.83415234,116020.0,116010.0,0.014]
[1757712826962,1.62003234,116020.0,116010.0,0.014]
[1757712842381,1.87003234,116020.0,116010.0,0.014]
[1757712843180,1.90089519,116020.0,116010.0,0.014]
[1757712843578,1.11501519,116020.0,116010.0,0.014]
[1757712844277,1.90081519,116020.0,116010.0,0.014]
[1757712846376,1.94774296,116020.0,116010.0,0.014]
[1757712853589,1.69774296,116020.0,116010.0,0.014]
[1757712854786,1.69774296,116020.0,116010.0,0.011]
[1757712855992,1.69674296,116020.0,116010.0,0.002]
[1757712856293,1.69774296,116020.0,116010.0,0.01]
[1757712857990,0.01365,115990.0,115980.0,0.14044881]
[1757712858195,0.39633,115990.0,115980.0,0.47373762]
[1757712858700,0.39988338,115990.0,115980.0,0.47373762]
[1757712859398,0.39988338,115990.0,115980.0,0.47873762]
[1757712859798,0.40088338,115990.0,115980.0,0.48873762]
[1757712860199,0.46949642,115990.0,115980.0,0.48873762]
[1757712860899,0.46949642,115990.0,115980.0,0.34828881]
[1757712861200,0.46949642,115990.0,115980.0,0.48873762]
[1757712866202,0.75039404,115990.0,115980.0,0.20784]
[1757712866403,0.60994523,115990.0,115980.0,0.34828881]
[1757712867302,0.46949642,115990.0,115980.0,0.34828881]
[1757712867504,0.60994523,115990.0,115980.0,0.34828881]
[1757712867696,0.75039404,115990.0,115980.0,0.34828881]
[1757712868108,0.75039404,115990.0,115980.0,0.20784]
[1757712868294,0.75039404,115990.0,115980.0,0.34828881]
[1757712868601,0.60994523,115990.0,115980.0,0.34828881]
[1757712872204,0.60994523,115990.0,115980.0,0.20784]
[1757712872410,0.60994523,115990.0,115980.0,0.34828881]
[1757712872599,0.75039404,115990.0,115980.0,0.34828881]
[1757712876410,0.75039404,115990.0,115980.0,0.20784]
[1757712876605,0.75039404,115990.0,115980.0,0.34828881]
[1757712877111,0.75039404,115990.0,115980.0,0.20784]
[1757712877310,0.75039404,115990.0,115980.0,0.34828881]
[1757712878610,0.46949642,115990.0,115980.0,0.34828881]
[1757712878800,0.75039404,115990.0,115980.0,0.20784]
[1757712879006,0.75039404,115990.0,115980.0,0.34828881]
[1757712879814,0.75039404,115990.0,115980.0,0.20784]
[1757712880013,0.75039404,115990.0,115980.0,0.34828881]
[1757712882314,0.77918948,115990.0,115980.0,0.34828881]
[1757712883909,0.77922948,115990.0,115980.0,0.34828881]
[1757712892412,0.63878067,115990.0,115980.0,0.34828881]
[1757712892921,0.63878067,115990.0,115980.0,0.20784]
[1757712893115,0.77922948,115990.0,115980.0,0.34828881]
[1757712893916,0.63878067,115990.0,115980.0,0.34828881]
[1757712894315,0.49833186,115990.0,115980.0,0.34828881]
[1757712894518,0.63878067,115990.0,115980.0,0.34828881]
[1757712895325,0.49833186,115990.0,115980.0,0.20784]
[1757712895526,0.63878067,115990.0,115980.0,0.34828881]
[1757712895727,0.49833186,115990.0,115980.0,0.34828881]
[1757712895927,0.63878067,115990.0,115980.0,0.34828881]
[1757712896227,0.63878067,115990.0,115980.0,0.20784]
[1757712896428,0.63878067,115990.0,115980.0,0.34828881]
[1757712896631,0.49833186,115990.0,115980.0,0.34828881]
[1757712896826,0.49833186,115990.0,115980.0,0.88918643]
[1757712896827,0.10200186,115990.0,115980.0,0.88918643]
[1757712897128,0.07320642,115990.0,115980.0,1.61998643]
[1757712897628,0.07320642,115990.0,115980.0,2.40538643]
[1757712908330,0.07320642,115990.0,115980.0,2.17127882]
[1757712908534,0.07320642,115990.0,115980.0,2.35851764]
[1757712914339,0.07320642,115990.0,115980.0,2.38190846]
[1757712914635,0.00459338,115990.0,115980.0,2.63190846]
[1757712916840,0.07528338,115990.0,115980.0,2.64906149]
[1757712922740,0.07528338,115990.0,115980.0,2.08734503]
[1757712922934,0.07528338,115990.0,115980.0,2.64906149]
[1757712934553,0.07528338,115990.0,115980.0,1.86366149]
[1757712934852,0.07528338,115990.0,115980.0,2.64870149]
[1757712936357,0.07528338,115990.0,115980.0,2.08694503]
[1757712936548,0.07528338,115990.0,115980.0,2.64866149]
[1757712939256,0.07528338,115990.0,115980.0,2.39866149]
[1757712941561,0.07528338,115990.0,115980.0,1.61366149]
[1757712942652,0.07528338,115990.0,115980.0,2.39862149]
[1757712942954,0.07528338,115990.0,115980.0,2.03782149]
[1757712943156,0.07528338,115990.0,115980.0,2.75942149]
[1757712943759,0.07528338,115990.0,115980.0,1.41274503]
[1757712943958,0.07528338,115990.0,115980.0,2.67326949]
[1757712951367,0.07528338,115990.0,115980.0,2.67322949]
[1757712964682,0.07528338,115990.0,115980.0,1.88830949]
[1757712964870,0.07528338,115990.0,115980.0,2.67314949]
[1757712968381,0.07528338,115990.0,115980.0,2.81355214]
[1757712969383,0.07528338,115990.0,115980.0,2.11143303]
[1757712969681,0.07528338,115990.0,115980.0,2.53264098]
[1757712970182,0.07528338,115990.0,115980.0,1.74780098]
[1757712970382,0.07528338,115990.0,115980.0,2.53264098]
[1757712973684,0.07528338,115990.0,115980.0,1.74780098]
[1757712973886,0.07528338,115990.0,115980.0,2.53260098]
[1757712979489,0.07528338,115990.0,115980.0,2.11139303]
[1757712979689,0.07528338,115990.0,115980.0,2.53260098]
[1757712984890,0.07528338,115990.0,115980.0,1.74780098]
[1757712985093,0.07528338,115990.0,115980.0,2.53252098]
[1757712988590,0.08926338,115990.0,115980.0,2.10295303]
[1757712989088,0.08926338,115990.0,115980.0,2.52416098]
[1757712989694,0.08926338,115990.0,115980.0,2.53416098]
[1757712991391,0.08926338,115990.0,115980.0,1.74780098]
[1757712991694,0.08926338,115990.0,115980.0,2.53512098]
[1757712992987,0.07528338,115990.0,115980.0,2.11391303]
[1757712993188,0.07528338,115990.0,115980.0,2.53512098]
[1757712997498,0.07528338,115990.0,115980.0,1.74780098]
[1757712997698,0.07528338,115990.0,115980.0,2.53536098]
[1757712997898,0.07528338,115990.0,115980.0,1.74780098]
[1757712998099,0.07528338,115990.0,115980.0,2.53528098]
[1757712998498,0.07528338,115990.0,115980.0,1.74780098]
[1757712998699,0.07528338,115990.0,115980.0,2.53524098]
[1757712999498,0.07528338,115990.0,115980.0,1.74780098]
[1757712999699,0.07528338,115990.0,115980.0,2.53520098]
[1757712999900,0.07528338,115990.0,115980.0,2.53552979]